Cogmind - Beta 15 @@@ ROGUE MODE // 2025.05.29 @ 14:33:04 Player: Rohain Result: Destroyed by UA-27B(R) with Subdweller Machine Gun Performance ------------- Evolutions (0) 0 Regions Visited (3) 600 Robots Destroyed (9) 45 Value Destroyed (148) 148 Prototype IDs (0) 0 Alien Tech Used (0) 0 Bonus (0) 0 TOTAL SCORE: 793 Bonus ------- None Cogmind --------- Core Integrity 0/250 Matter 249/300 Energy 99/100 System Corruption 0% Temperature Cool (0) Movement Core (250) Ox4 Location -10/Subcaves Parts ------- > --- POWER (1) -------- (None) > --- PROPULSION (2) --- (None) > --- UTILITY (2) ------ Medium Storage Unit > --- WEAPON (2) ------- Particle Gun Assault Rifle > --- INVENTORY (10) --- Ion Engine Light Ion Engine Heat Sink Small Storage Unit Medium Laser Beam Cannon Beam Cannon Beam Cannon Peak State ------------ > --- POWER ------------ Light Nuclear Core > --- PROPULSION ------- Aluminum Leg Aluminum Leg > --- UTILITY ---------- Improved Heat Sink Medium Storage Unit > --- WEAPON ----------- Assault Rifle Assault Rifle > --- INVENTORY -------- Ion Engine Light Ion Engine Heat Sink Small Storage Unit Medium Laser Particle Gun Beam Cannon Beam Cannon Beam Cannon [Rating: 12] Favorites ----------- Power Ion Engine Engine Ion Engine Power Core Light Nuclear Core Propulsion Aluminum Leg Leg Aluminum Leg Utility Medium Storage Unit Device Improved Heat Sink Storage Medium Storage Unit Weapon Beam Cannon Energy Gun Medium Laser Energy Cannon Beam Cannon Ballistic Gun Assault Rifle Build | -11 -10 -10 -10 ------- Run | Yrd Mat Min Sub Slots Evolved . | . . . . Power . | . . . . Propulsion . | . . . . Utility . | . . . . Weapon . | . . . . Parts Attached 14 | 7 5 1 1 Power 2 | 1 1 . . Engine 1 | 1 . . . Core 1 | . 1 . . Reactor . | . . . . Propulsion 2 | 2 . . . Treads . | . . . . Leg 2 | 2 . . . Wheel . | . . . . Hover . | . . . . Flight . | . . . . Utility 5 | 2 3 . . Device 3 | 1 2 . . Storage 2 | 1 1 . . Processor . | . . . . Hackware . | . . . . Protection . | . . . . Artifact . | . . . . Weapon 5 | 2 1 1 1 Energy Gun 2 | 1 . . 1 Energy Cannon 1 | . 1 . . Ballistic Gun 2 | 1 . 1 . Ballistic Cannon . | . . . . Launcher . | . . . . Special Weapon . | . . . . Impact Weapon . | . . . . Slashing Weapon . | . . . . Piercing Weapon . | . . . . Special Melee Weapon . | . . . . Unidentified Prototypes . | . . . . Parts Lost 5 | . . . 5 Power 1 | . . . 1 Propulsion 2 | . . . 2 Utility 1 | . . . 1 Weapon 1 | . . . 1 Highest Loss Streak 5 | . . . 5 To Critical Strikes . | . . . . Average Backups 6 | 1 5 9 8 Power 1 | . 1 2 2 Propulsion . | . . . . Utility 1 | . 1 2 2 Weapon 3 | . 3 5 4 Tool/Special . | . . . . Unused Backups 4 | . . . 4 Power 1 | . . . 1 Propulsion . | . . . . Utility 1 | . . . 1 Weapon 2 | . . . 2 Tool/Special . | . . . . Average Slot Usage (%) 91 | . 92 90 85 Engine 7 | . 12 . . Core 6 | . 1 14 11 Leg 26 | . 28 28 16 Device 10 | . 8 14 14 Storage 14 | . 14 14 14 Energy Gun 7 | . 12 . 2 Energy Cannon 9 | . 11 7 . Ballistic Gun 7 | . 2 11 25 Peak Build Rating 12 | 9 11 12 12 Average Rating 8 | 4 7 11 10 On Entrance 8 | . 9 11 12 Naked Turns . | . . . . Heaviest Build 21 | 15 21 20 20 Greatest Support 20 | 20 20 20 20 Greatest Overweight (x) 1 | 1 1 . . Average Overweight (x) . | . . . . Largest Inventory Capacity 10 | 8 10 10 10 Average Capacity 9 | 7 9 10 10 Most Carried 10 | 4 10 10 9 Average Carried 6 | 1 6 9 8 Final Capacity 10 | 8 10 10 10 Final Carried 10 | 2 10 9 8 Class Distribution -------------------- 100% | Mutant Dominant Class ---------------- Mutant | -10/Materials Mutant | -10/Mines Mutant | -10/Subcaves Resources | -11 -10 -10 -10 ----------- Run | Yrd Mat Min Sub Matter Collected 355 | 273 50 32 . Remotely . | . . . . Salvage Created 208 | 26 135 47 . Parts 16 | 3 7 6 . Haulers Intercepted . | . . . . Recyclers Shooed . | . . . . Parts Field Recycled . | . . . . Retrieved Matter . | . . . . Parts Self-Destructed 4 | . . . 4 Prevented . | . . . . Kills | -11 -10 -10 -10 ------- Run | Yrd Mat Min Sub Combat Hostiles Destroyed 8 | . 5 3 . Guns 6 | . 3 3 . Cannons 2 | . 2 . . Classes Destroyed 3 | 1 2 . . Tunneler 1 | 1 . . . Swarmer 6 | . 3 3 . Grunt 2 | . 2 . . Best Kill Streak 3 | 1 2 3 . Combat Bots Only 3 | . 2 3 . Max Kills in Single Turn 2 | 1 1 2 . Gunslinging 1 | . . 1 . Exploded . | . . . . Melee . | . . . . Uniques/NPCs Destroyed . | . . . . Combat | -11 -10 -10 -10 -------- Run | Yrd Mat Min Sub Hostile Shots Fired 85 | . 45 8 32 Missed 21 | . 11 . 10 Hits 64 | . 34 8 22 Projectile 64 | . 34 8 22 Critical Strikes 3 | . 1 . 2 Damage Taken 883 | . 356 71 456 Core 255 | . 70 26 159 Absorbed by Shields . | . . . . Core Remaining (%) 100 | 100 . . . Volleys Fired 36 | 1 20 2 13 Largest 2 | 2 2 2 2 Hottest 110 | 70 110 40 85 Shots Fired 70 | 2 38 4 26 Gun 52 | 2 20 4 26 Cannon 18 | . 18 . . Launcher . | . . . . Special . | . . . . Kinetic 27 | 1 . 4 22 Thermal 43 | 1 38 . 4 Explosive . | . . . . Electromagnetic . | . . . . Robot Hit Streak 14 | 1 9 13 14 Robot Miss Streak 2 | . 2 . 1 Penetration Max . | . . . . Secondary Targets 2 | . . 2 . Max Gunslinging Chain 1 | . . 1 . Shots Hit Robots 51 | 1 25 4 21 Core Hits 11 | 1 7 3 . Critical Kills . | . . . . Critical Parts Destroyed . | . . . . Critical Strikes . | . . . . Melee Attacks . | . . . . Impact . | . . . . Slashing . | . . . . Piercing . | . . . . Sneak Attacks . | . . . . Combat Hostiles . | . . . . Follow-up Attacks . | . . . . Damage Inflicted 485 | 13 370 51 51 Guns 278 | 13 163 51 51 Cannons 207 | . 207 . . Explosions . | . . . . Melee . | . . . . Ramming . | . . . . Kinetic 102 | . . 51 51 Thermal 383 | 13 370 . . Explosive . | . . . . Electromagnetic . | . . . . Impact . | . . . . Slashing . | . . . . Piercing . | . . . . Highest Corruption . | . . . . Average Corruption . | . . . . Corruption Purged . | . . . . Corruption Blocked . | . . . . Overload Shots . | . . . . Overflow Damage 14 | . 14 . . Projectiles 14 | . 14 . . Explosions . | . . . . Melee . | . . . . Knockbacks . | . . . . Impact . | . . . . Kinetic . | . . . . Secondary . | . . . . Self-Inflicted Damage . | . . . . Shots . | . . . . Rammed . | . . . . Targets Rammed . | . . . . Kicked . | . . . . Crushed . | . . . . Highest Temperature 432 | 9 432 . . Average Temperature 165 | 6 170 . . Received Heat Transfer 105 | . 105 . . Effects 1 | . 1 . . Interference 1 | . 1 . . Siege Activations . | . . . . Martial Activations . | . . . . Shielding Activations . | . . . . Robots Disrupted . | . . . . Combat Hostiles . | . . . . Robots Corrupted . | . . . . Combat Hostiles . | . . . . Parts Fried . | . . . . Impact Corruptions . | . . . . Robots Melted . | . . . . Combat Hostiles . | . . . . Parts Melted 1 | . 1 . . Heat Transferred 962 | 37 925 . . Parts Sabotaged . | . . . . Parts Stolen . | . . . . Parts Stripped . | . . . . Power Chain Reactions . | . . . . Alert | -11 -10 -10 -10 ------- Run | Yrd Mat Min Sub Maximum Alert Level . | . . . . Low Security (%) 100 | 100 100 100 . Level 1 . | . . . . Level 2 . | . . . . Level 3 . | . . . . Level 4 . | . . . . Level 5 . | . . . . High Security . | . . . . Max Security . | . . . . Peak Influence 81 | 5 81 60 . Initial 19 | . 3 19 . Average 20 | . 23 23 . Influence Increases 217 | 5 142 70 . Destroy 0b10 Robot/C 160 | . 100 60 . Destroy 0b10 Robot/NC 5 | 5 . . . Destroy Leader 30 | . 20 10 . Successful Hack 20 | . 20 . . Destroy Structure 2 | . 2 . . Influence Decreases 217 | . 96 91 30 Entered New Map 50 | . 2 32 16 Time Decay 163 | . 94 59 10 Lost Part 4 | . . . 4 Squads Dispatched . | . . . . Investigation . | . . . . Extermination . | . . . . Reinforcement . | . . . . Assault . | . . . . Garrison . | . . . . Intercept . | . . . . Searches Triggered . | . . . . Construction Impeded . | . . . . Haulers Reinforced . | . . . . Active Scanning Responses . | . . . . Cargo Convoy Interrupts . | . . . . Stealth | -11 -10 -10 -10 --------- Run | Yrd Mat Min Sub Distress Signals . | . . . . Communications Jammed . | . . . . Distress Signals . | . . . . Times Spotted 12 | . 5 3 4 Peak Tracking Total 4 | . 3 3 4 Tactical Retreats . | . . . . Traps | -11 -10 -10 -10 ------- Run | Yrd Mat Min Sub Traps Triggered . | . . . . Indirectly . | . . . . Trap Hack Attempts . | . . . . Triggered . | . . . . Disarmed . | . . . . Reprogrammed . | . . . . Reused . | . . . . Traps Extracted . | . . . . Installed . | . . . . Triggered . | . . . . Machines | -11 -10 -10 -10 ---------- Run | Yrd Mat Min Sub Machines Disabled . | . . . . Max in Single Turn . | . . . . Machines Repaired . | . . . . Machines Dismantled . | . . . . Machines Sabotaged . | . . . . Overloaded Fab Kills . | . . . . Hacking | -11 -10 -10 -10 --------- Run | Yrd Mat Min Sub Machines Accessed 2 | . 2 . . Terminals 2 | . 2 . . Fabricators . | . . . . Repair Stations . | . . . . Recycling Units . | . . . . Scanalyzers . | . . . . Garrison Access . | . . . . Total Hacks 6 | . 6 . . Successful 4 | . 4 . . Failed 2 | . 2 . . Catastrophic . | . . . . Database Lockouts . | . . . . Manual 6 | . 6 . . Terminals 6 | . 6 . . Fabricators . | . . . . Repair Stations . | . . . . Recycling Units . | . . . . Scanalyzers . | . . . . Garrison Access . | . . . . Terminal Hacks 2 | . 2 . . Robot Analysis 2 | . 2 . . Fabricator Hacks . | . . . . Repair Station Hacks . | . . . . Recycling Unit Hacks . | . . . . Scanalyzer . | . . . . Garrison Access Hacks . | . . . . Unauthorized Hacks 2 | . 2 . . Terminals 2 | . 2 . . Botnet 2 | . 2 . . Fabricators . | . . . . Repair Stations . | . . . . Recycling Units . | . . . . Scanalyzers . | . . . . Garrison Access . | . . . . Data Cores Recovered . | . . . . Used . | . . . . Hacking Detections 2 | . 2 . . Full Trace Events . | . . . . Feedback Events . | . . . . Feedback Blocked . | . . . . Robot Schematics Acquired . | . . . . Robots Built . | . . . . Authchips . | . . . . Time . | . . . . Total Robot Build Rating . | . . . . Part Schematics Acquired . | . . . . Parts Built . | . . . . Authchips . | . . . . Time . | . . . . Total Part Build Rating . | . . . . Parts Repaired . | . . . . Time . | . . . . Parts Recycled . | . . . . Recycled Matter . | . . . . Retrieved Matter . | . . . . Retrieved Components . | . . . . Parts Scanalyzed . | . . . . Part Schematics Acquired . | . . . . Parts Damaged . | . . . . Bothacking | -11 -10 -10 -10 ------------ Run | Yrd Mat Min Sub Used RIF Installer . | . . . . Robots Hacked . | . . . . Non-combat . | . . . . Combat . | . . . . Robot Hacks Applied . | . . . . Relay Couplers Released . | . . . . Fabnet Peak Effective % . | . . . . Robots Rewired . | . . . . Allies Hacked . | . . . . Hacks Repelled . | . . . . Allies | -11 -10 -10 -10 -------- Run | Yrd Mat Min Sub Total Allies . | . . . . Largest Group . | . . . . Highest-Rated Group . | . . . . Highest-Rated Ally . | . . . . Total Orders . | . . . . Ally Attacks . | . . . . Total Damage . | . . . . Kills . | . . . . Allies Corrupted . | . . . . Allies Melted . | . . . . Intel | -11 -10 -10 -10 ------- Run | Yrd Mat Min Sub Active Infowar (turns) 164 | 9 155 . . Terrain 36 | 9 27 . . Seismic 128 | . 128 . . Robot Analysis Total 2 | . 2 . . Derelict Logs Recovered . | . . . . Drone Launches . | . . . . Drone Recoveries . | . . . . Exploration | -11 -10 -10 -10 ------------- Run | Yrd Mat Min Sub Turns Passed 632 | 77 327 175 53 Spaces Moved 381 | 54 182 136 9 Core 8 | 8 . . . Treads . | . . . . Legs 373 | 46 182 136 9 Wheels . | . . . . Hover . | . . . . Flight . | . . . . Fastest Speed 50 | 50 120 120 120 Average Speed 120 | 113 122 120 120 Slowest Speed 190 | 120 190 120 120 Overloaded Moves . | . . . . Propulsion Burnouts . | . . . . Robots Hopped . | . . . . Potential Cave-ins . | . . . . Cave-ins Triggered . | . . . . Exploration Rate (%) 20 | 3 33 43 2 Regions Visited 3 Branch Regions 2 Pre-discovered Areas . | . . . . Known Exits Taken . | . . . . Unknown Exits Taken 3 | 1 1 1 . Scrap Searched . | . . . . Spaces Dug . | . . . . Terrain Destroyed . | . . . . Melee . | . . . . Projectile . | . . . . AOE . | . . . . Terrain Rammed . | . . . . Walls Destroyed . | . . . . Machines Disabled . | . . . . Actions | -11 -10 -10 -10 --------- Run | Yrd Mat Min Sub Total 486 | 66 250 144 26 Wait 37 | . 31 3 3 Move 378 | 53 181 135 9 Hop . | . . . . Pick Up 13 | 5 7 1 . Fast Attach 6 | 4 2 . . Attach 7 | 3 1 2 1 Detach 2 | . 2 . . Swap 2 | . 2 . . Drop 5 | . 4 1 . Fire 36 | 1 20 2 13 Melee . | . . . . Ram . | . . . . Kick . | . . . . Crush . | . . . . Escape Stasis . | . . . . Rewire . | . . . . Trap . | . . . . Miscellaneous . | . . . . Route ------- -11/Scrapyard -10/Materials -10/Mines -10/Subcaves History --------- Turn | Location | Event 2 | -11/Scrapyard | Met Revision 17 8 | -11/Scrapyard | Discovered new exit (range 15) 78 | -11/Scrapyard | Entered Materials 311 | -10/Materials | Build established: Mutant 393 | -10/Materials | Discovered new exit (range 9) 405 | -10/Materials | Entered Mines 558 | -10/Mines | Discovered new exit (range 5) 580 | -10/Mines | Entered Subcaves 606 | -10/Subcaves | Core integrity fell below 50% 630 | -10/Subcaves | Core integrity fell below 20% 633 | -10/Subcaves | Destroyed by UA-27B(R) with Subdweller Machine Gun Last Messages --------------- LOCATION=UNKNOWN AMBIENT_HEAT=-10 GOAL=ESCAPE 00581_ UA-27B(R) emerges from the Twisted Machinery. 00583_ LZ-QKP(z): "She is not going to be happy we haven't found any suitable candidates yet." 00589_ G-47 Trooper destroyed. 00591_ Subatomizers dissect the Aluminum Leg. 00595_ Aluminum Leg fries itself beyond repair. 00603_ Lgt. Nuclear Core fries itself beyond repair. 00604_ G-34 Mercenary destroyed. 00605_ Subatomizers dissect the Aluminum Leg. 00609_ Aluminum Leg destroyed. 00612_ Aluminum Leg fries itself beyond repair. 00613_ Aluminum Leg destroyed. 00621_ Assault Rifle destroyed. 00627_ Lgt. Nuclear Core destroyed. 00631_ Imp. Heat Sink destroyed. Map ----- +----------------------------------------------------+ | ?????????????????????????????????????????????????? | | ?????????????????????????????????????????????????? | | ?????????????????????????????????????????????????? | | ?????????????????????????????????????????????????? | | ?????????????????????????????????????????????????? | | ?????????????????????????????????????????????????? | | ?????????????????????????????????????????????????? | | ?????????????????????????????????????????????????? | | ?????????????????????????????????????????????????? | | ?????????????????????????????????????????????????? | | ?????????????????????????????????????????????????? | | ?????????????????????????????????????????????????? | | ?????????????????????????????????????????????????? | | ?????????????????????????????????????????????????? | | ?????????????????????????????????????????????????? | | ?????????????????????????????????????????????????? | | ?????????????????#???????????????????????????????? | | ????????????????## ??????????????????????????????? | | ????????????????# ?????????????????????????????? | | ????????????????# ????????????????????????????? | | ????????????????# #???####????????????????????? | | ?????????????????# #??# #####?##?????????????? | | ?????????????????# ?# ## # ## #??????? | | ?????????????????# ## #??????? | | ?????????????????# R " #???? | | ?????????????????# ## @ R %# # ???? | | ?????????????????#?????## " "##### ?????? | | ????????????????????????# #" #??????? ????? | | ???????????????????????# #""" % ?????????????? | | ???????????????????????# # "##[ ???????????? | | ???????????????????????# " "#?"### ??????????? | | ???????????????????????# ## ##??"?????????????? | | ???????????????????????###### "#????#????????????? | | ???????????????????????????? ??????????????????? | | ???????????????????????????? ?????????????????? | | ?????????????????????????????? ?????????????????? | | ??????????????????????????????? #????????????????? | | ???????????????????????????????? ????????????????? | | ?????????????????????????????????????????????????? | | ?????????????????????????????????????????????????? | | ?????????????????????????????????????????????????? | | ?????????????????????????????????????????????????? | | ?????????????????????????????????????????????????? | | ?????????????????????????????????????????????????? | | ?????????????????????????????????????????????????? | | ?????????????????????????????????????????????????? | | ?????????????????????????????????????????????????? | | ?????????????????????????????????????????????????? | | ?????????????????????????????????????????????????? | | ?????????????????????????????????????????????????? | +----------------------------------------------------+ Best States ------------- Heat Dissipation 39 Energy Generation 14 Energy Capacity 250 Matter Stores 300 Matter Capacity 300 Sight Range 16 Terrain Scan Range 16 Terrain Scan Density 10 Evasion (%) 55 Item Schematics ----------------- None Robot Schematics ------------------ None Fabricated ------------ Nothing Repaired ---------- Nothing Alien Tech Used ----------------- None Achievements -------------- None Challenges ------------ None Game ------ Seed LayeredShiftMachine Manual? 0 Play Time 00:04:37 Cumulative 71.9 hours Start 2025.05.29 @ 14:28:56 End 2025.05.29 @ 14:33:04 Sessions 1 Manual Loads 0 Difficulty Rogue Special Mode None Game No. 124 Rogue 108 Adventurer 16 Explorer 0 Win Type - Total 1 Types 1/0/0/0/0/0/0/0/0/0 Lore% 25 Gallery% 48 Achievement% 48 Wizard Run 0 Options --------- Layout 2 ASCII 0 Keyboard 0 Movement Vi Keybinds 0 Fullscreen 1 Font 24/Smallcaps Map View 50x44 Zoom Use 0% Tactical HUD 1 Map Filters NONE Filters NONE Steam 1 RUN: c1c7376b-d540-43da-a30a-96b312ea25c7